[Event "Live Chess"]
[Site "Chess.com"]
[Date "2023.05.21"]
[Round "-"]
[White "fretle"]
[Black "Larchikov"]
[Result "0-1"]
[WhiteElo "1802"]
[BlackElo "2066"]
[TimeControl "300"]
[EndTime "1:49:24 PDT"]
[Termination "Larchikov won by resignation"]

1. f4 {[%clk 0:04:58.8]} 1... d5 {[%clk 0:04:55.8]} 2. Nf3 {[%clk 0:04:57.8]}
2... Nf6 {[%clk 0:04:55.4]} 3. e3 {[%clk 0:04:56.9]} 3... c5 {[%clk 0:04:55]} 4.
b3 {[%clk 0:04:55.4]} 4... Nc6 {[%clk 0:04:54.7]} 5. Bb5 {[%clk 0:04:54.2]} 5...
e6 {[%clk 0:04:51.7]} 6. Bxc6+ {[%clk 0:04:52.7]} 6... bxc6 {[%clk 0:04:50.8]}
7. Bb2 {[%clk 0:04:52.3]} 7... Be7 {[%clk 0:04:49]} 8. O-O {[%clk 0:04:49.5]}
8... O-O {[%clk 0:04:48.6]} 9. d3 {[%clk 0:04:48.1]} 9... Ba6 {[%clk 0:04:46.4]}
10. Nbd2 {[%clk 0:04:46.2]} 10... Rb8 {[%clk 0:04:44]} 11. c4 {[%clk 0:04:39.2]}
11... dxc4 {[%clk 0:04:39.8]} 12. dxc4 {[%clk 0:04:21.5]} 12... Qc7 {[%clk
0:04:35.8]} 13. Qc2 {[%clk 0:04:17.5]} 13... Rfd8 {[%clk 0:04:32.8]} 14. Ne5
{[%clk 0:04:09.4]} 14... Nd7 {[%clk 0:04:26.7]} 15. Ndf3 {[%clk 0:04:08.2]}
15... Bf6 {[%clk 0:04:25.1]} 16. Qe4 {[%clk 0:03:55.7]} 16... Nxe5 {[%clk
0:04:21.1]} 17. Nxe5 {[%clk 0:03:53.4]} 17... Rd6 {[%clk 0:04:14.9]} 18. Rf3
{[%clk 0:03:47.1]} 18... Rbd8 {[%clk 0:04:09.9]} 19. Raf1 {[%clk 0:03:40.6]}
19... Bb7 {[%clk 0:03:34.8]} 20. Ba3 {[%clk 0:03:39.4]} 20... Qa5 {[%clk
0:03:29.6]} 21. Bc1 {[%clk 0:03:09]} 21... Qxa2 {[%clk 0:03:20.9]} 22. Rh3
{[%clk 0:03:07.5]} 22... g6 {[%clk 0:03:17.3]} 23. Ng4 {[%clk 0:03:05.2]} 23...
Bg7 {[%clk 0:03:14.9]} 24. Nh6+ {[%clk 0:02:59.7]} 24... Bxh6 {[%clk 0:03:13]}
25. Rxh6 {[%clk 0:02:58.4]} 25... Rd1 {[%clk 0:03:12.4]} 26. Qf3 {[%clk
0:02:16.3]} 26... Rxf1+ {[%clk 0:03:07.6]} 27. Qxf1 {[%clk 0:02:16.2]} 27... Qc2
{[%clk 0:03:05.7]} 0-1

[Event "Live Chess"]
[Site "Chess.com"]
[Date "2023.05.21"]
[Round "-"]
[White "wadsy27"]
[Black "RichardABates"]
[Result "1-0"]
[WhiteElo "2569"]
[BlackElo "2129"]
[TimeControl "300"]
[EndTime "1:49:56 PDT"]
[Termination "wadsy27 won on time"]

1. d4 {[%clk 0:04:57.6]} 1... Nf6 {[%clk 0:04:57.4]} 2. c4 {[%clk 0:04:56.7]}
2... g6 {[%clk 0:04:55.6]} 3. g3 {[%clk 0:04:53.1]} 3... Bg7 {[%clk 0:04:53.7]}
4. Bg2 {[%clk 0:04:52.4]} 4... O-O {[%clk 0:04:52.3]} 5. Nc3 {[%clk 0:04:51.6]}
5... d6 {[%clk 0:04:49.6]} 6. h3 {[%clk 0:04:50.6]} 6... e5 {[%clk 0:04:30.8]}
7. Nf3 {[%clk 0:04:45.4]} 7... Nbd7 {[%clk 0:04:18.7]} 8. e4 {[%clk 0:04:36.9]}
8... exd4 {[%clk 0:04:05.5]} 9. Nxd4 {[%clk 0:04:35.3]} 9... a6 {[%clk
0:04:04.8]} 10. O-O {[%clk 0:04:33.6]} 10... Re8 {[%clk 0:04:02.4]} 11. Re1
{[%clk 0:04:32]} 11... Rb8 {[%clk 0:04:01]} 12. a4 {[%clk 0:04:27.3]} 12... Nc5
{[%clk 0:03:52.8]} 13. Qc2 {[%clk 0:04:20]} 13... a5 {[%clk 0:03:51.2]} 14. Be3
{[%clk 0:04:17.2]} 14... h6 {[%clk 0:03:31]} 15. b3 {[%clk 0:04:14.5]} 15... Na6
{[%clk 0:03:10.2]} 16. f4 {[%clk 0:04:04]} 16... Nd7 {[%clk 0:03:08.5]} 17. Rab1
{[%clk 0:04:00]} 17... Ndc5 {[%clk 0:03:06.4]} 18. Qd2 {[%clk 0:03:40.4]} 18...
Nb4 {[%clk 0:03:01.5]} 19. Kh2 {[%clk 0:03:19.3]} 19... c6 {[%clk 0:02:57.6]}
20. Bg1 {[%clk 0:03:12.9]} 20... h5 {[%clk 0:02:43.1]} 21. Nc2 {[%clk
0:03:04.6]} 21... Qe7 {[%clk 0:02:35.3]} 22. Bxc5 {[%clk 0:02:39.3]} 22... dxc5
{[%clk 0:02:33.9]} 23. e5 {[%clk 0:02:38.4]} 23... Bf5 {[%clk 0:02:31]} 24. Ne4
{[%clk 0:02:32.5]} 24... Rbd8 {[%clk 0:02:23.5]} 25. Qe2 {[%clk 0:02:30.2]}
25... h4 {[%clk 0:02:08]} 26. g4 {[%clk 0:02:27.2]} 26... Bxe4 {[%clk
0:02:06.4]} 27. Bxe4 {[%clk 0:02:26.2]} 27... g5 {[%clk 0:01:50.6]} 28. Nxb4
{[%clk 0:01:07.3]} 28... cxb4 {[%clk 0:01:42.8]} 29. Bc2 {[%clk 0:00:47.7]}
29... Rd4 {[%clk 0:01:26.9]} 30. fxg5 {[%clk 0:00:35.2]} 30... Qxg5 {[%clk
0:01:04.6]} 31. Rbd1 {[%clk 0:00:31.3]} 31... Rxe5 {[%clk 0:00:57.3]} 32. Qf2
{[%clk 0:00:26.1]} 32... Rxe1 {[%clk 0:00:49.4]} 33. Rxe1 {[%clk 0:00:24.4]}
33... Be5+ {[%clk 0:00:35.5]} 34. Kh1 {[%clk 0:00:23]} 34... f6 {[%clk
0:00:19.5]} 35. Rd1 {[%clk 0:00:20.6]} 35... Rxd1+ {[%clk 0:00:09.6]} 36. Bxd1
{[%clk 0:00:20]} 36... Qc1 {[%clk 0:00:08.7]} 37. Qe2 {[%clk 0:00:16.4]} 37...
Qf4 {[%clk 0:00:07.7]} 38. Kg2 {[%clk 0:00:14.4]} 38... Qg3+ {[%clk 0:00:06.3]}
39. Kf1 {[%clk 0:00:12.8]} 39... Bd4 {[%clk 0:00:05.5]} 40. Qg2 {[%clk
0:00:08.6]} 40... Qe3 {[%clk 0:00:04.1]} 41. Qf3 {[%clk 0:00:05.1]} 41... Qxf3+
{[%clk 0:00:02.7]} 42. Bxf3 {[%clk 0:00:03.8]} 42... Kf7 {[%clk 0:00:02.6]} 43.
Bd1 {[%clk 0:00:03.7]} 43... Ke6 {[%clk 0:00:00.6]} 44. Ke2 {[%clk 0:00:03.6]}
1-0

[Event "Live Chess"]
[Site "Chess.com"]
[Date "2023.05.21"]
[Round "-"]
[White "YrrriKharkiv"]
[Black "Tiltador"]
[Result "1-0"]
[WhiteElo "2057"]
[BlackElo "859"]
[TimeControl "300"]
[EndTime "1:50:01 PDT"]
[Termination "YrrriKharkiv won by checkmate"]

1. d4 {[%clk 0:04:57.2]} 1... d5 {[%clk 0:04:58.7]} 2. c4 {[%clk 0:04:56]} 2...
dxc4 {[%clk 0:04:56.6]} 3. e3 {[%clk 0:04:54.8]} 3... b5 {[%clk 0:04:55.1]} 4.
a4 {[%clk 0:04:53]} 4... c6 {[%clk 0:04:52.7]} 5. axb5 {[%clk 0:04:52.3]} 5...
cxb5 {[%clk 0:04:51.4]} 6. Qf3 {[%clk 0:04:51.4]} 6... Nc6 {[%clk 0:04:45.6]} 7.
Qxc6+ {[%clk 0:04:49.8]} 7... Bd7 {[%clk 0:04:44.6]} 8. Qa6 {[%clk 0:04:46.7]}
8... Nf6 {[%clk 0:04:40.8]} 9. Nf3 {[%clk 0:04:36.8]} 9... e6 {[%clk 0:04:39]}
10. Bd2 {[%clk 0:04:33.7]} 10... Be7 {[%clk 0:04:32.6]} 11. Ne5 {[%clk
0:04:32.6]} 11... O-O {[%clk 0:04:28.9]} 12. Nc3 {[%clk 0:04:29.5]} 12... Nd5
{[%clk 0:04:22]} 13. Nxd7 {[%clk 0:04:18.9]} 13... Qxd7 {[%clk 0:04:17.4]} 14.
Qxb5 {[%clk 0:04:15.5]} 14... Qxb5 {[%clk 0:04:12.7]} 15. Nxb5 {[%clk
0:04:14.3]} 15... Rfb8 {[%clk 0:04:02.8]} 16. Bxc4 {[%clk 0:04:13.3]} 16... a6
{[%clk 0:03:52]} 17. Bxd5 {[%clk 0:04:12.2]} 17... exd5 {[%clk 0:03:46.8]} 18.
Nc7 {[%clk 0:04:11]} 18... Ra7 {[%clk 0:03:39.5]} 19. Nxd5 {[%clk 0:04:10.4]}
19... Bf6 {[%clk 0:03:34.4]} 20. Nxf6+ {[%clk 0:04:08.7]} 20... gxf6 {[%clk
0:03:32.1]} 21. Bc3 {[%clk 0:04:08.5]} 21... Kg7 {[%clk 0:03:23.3]} 22. Ke2
{[%clk 0:04:07.2]} 22... Kg6 {[%clk 0:03:22.2]} 23. Ra5 {[%clk 0:04:06]} 23...
f5 {[%clk 0:03:17.2]} 24. Rha1 {[%clk 0:04:03.9]} 24... h5 {[%clk 0:03:03.5]}
25. Rxa6+ {[%clk 0:04:02.3]} 25... Rxa6 {[%clk 0:03:02.3]} 26. Rxa6+ {[%clk
0:04:01.8]} 26... Kg5 {[%clk 0:02:58.9]} 27. f4+ {[%clk 0:03:59.9]} 27... Kg4
{[%clk 0:02:52.6]} 28. Ra7 {[%clk 0:03:54]} 28... f6 {[%clk 0:02:43.6]} 29. Rg7+
{[%clk 0:03:52.3]} 29... Kh4 {[%clk 0:02:42.1]} 30. Be1# {[%clk 0:03:51.3]} 1-0

[Event "Live Chess"]
[Site "Chess.com"]
[Date "2023.05.21"]
[Round "-"]
[White "ExIsambard"]
[Black "yeetpizza74"]
[Result "1-0"]
[WhiteElo "1907"]
[BlackElo "465"]
[TimeControl "300"]
[EndTime "1:50:02 PDT"]
[Termination "ExIsambard won by checkmate"]

1. d4 {[%clk 0:04:58.2]} 1... e5 {[%clk 0:04:58.5]} 2. dxe5 {[%clk 0:04:56.6]}
2... Nc6 {[%clk 0:04:57.3]} 3. Nf3 {[%clk 0:04:56.5]} 3... Qe7 {[%clk 0:04:55]}
4. e6 {[%clk 0:04:55.9]} 4... Qxe6 {[%clk 0:04:43]} 5. Nc3 {[%clk 0:04:54.8]}
5... Bb4 {[%clk 0:04:36.4]} 6. Bd2 {[%clk 0:04:43.9]} 6... Bxc3 {[%clk
0:04:32.2]} 7. Bxc3 {[%clk 0:04:43]} 7... f6 {[%clk 0:04:26.6]} 8. e3 {[%clk
0:04:42.3]} 8... d5 {[%clk 0:04:07.5]} 9. Bb5 {[%clk 0:04:40.7]} 9... Ne7 {[%clk
0:04:03.8]} 10. Nd4 {[%clk 0:04:26.6]} 10... O-O {[%clk 0:03:59.7]} 11. Nxe6
{[%clk 0:04:25.3]} 11... Bxe6 {[%clk 0:03:42.2]} 12. O-O {[%clk 0:04:12.1]}
12... a6 {[%clk 0:03:40]} 13. Bd3 {[%clk 0:04:10.6]} 13... Ne5 {[%clk
0:03:32.7]} 14. Bxe5 {[%clk 0:04:09.3]} 14... fxe5 {[%clk 0:03:30.6]} 15. e4
{[%clk 0:04:08.7]} 15... dxe4 {[%clk 0:03:28.9]} 16. Bxe4 {[%clk 0:04:07.9]}
16... Bf5 {[%clk 0:03:27]} 17. Bxb7 {[%clk 0:03:53.1]} 17... Rad8 {[%clk
0:03:21.6]} 18. Qe2 {[%clk 0:03:47.2]} 18... Bxc2 {[%clk 0:03:12.9]} 19. Qxc2
{[%clk 0:03:45]} 19... Nf5 {[%clk 0:02:54.9]} 20. Qb3+ {[%clk 0:03:40.7]} 20...
Rf7 {[%clk 0:02:51.7]} 21. Bd5 {[%clk 0:03:38.2]} 21... Rd7 {[%clk 0:02:50.2]}
22. Bxf7+ {[%clk 0:03:37]} 22... Rxf7 {[%clk 0:02:48.8]} 23. Rad1 {[%clk
0:03:36.2]} 23... h6 {[%clk 0:02:44.8]} 24. Rd8+ {[%clk 0:03:33.2]} 24... Kh7
{[%clk 0:02:41.6]} 25. Qxf7 {[%clk 0:03:32]} 25... Nd6 {[%clk 0:02:37.1]} 26.
Qg8+ {[%clk 0:03:23.9]} 26... Kg6 {[%clk 0:02:35.3]} 27. f4 {[%clk 0:03:21.8]}
27... e4 {[%clk 0:02:32]} 28. g4 {[%clk 0:03:20.3]} 28... c5 {[%clk 0:02:25.4]}
29. Rxd6# {[%clk 0:03:18.4]} 1-0

[Event "Live Chess"]
[Site "Chess.com"]
[Date "2023.05.21"]
[Round "-"]
[White "BillythekidFellowes"]
[Black "Delacorta"]
[Result "1-0"]
[WhiteElo "2061"]
[BlackElo "1414"]
[TimeControl "300"]
[EndTime "1:50:03 PDT"]
[Termination "BillythekidFellowes won by resignation"]

1. e4 {[%clk 0:04:48.6]} 1... e6 {[%clk 0:04:59.1]} 2. Nf3 {[%clk 0:04:47.1]}
2... d5 {[%clk 0:04:57.7]} 3. exd5 {[%clk 0:04:46.8]} 3... exd5 {[%clk
0:04:57.6]} 4. d4 {[%clk 0:04:45.9]} 4... Nf6 {[%clk 0:04:56.5]} 5. Nc3 {[%clk
0:04:41.6]} 5... c6 {[%clk 0:04:55.1]} 6. Bd3 {[%clk 0:04:39.6]} 6... Bg4 {[%clk
0:04:52.8]} 7. O-O {[%clk 0:04:31.7]} 7... Be7 {[%clk 0:04:50.4]} 8. h3 {[%clk
0:04:25.9]} 8... Bxf3 {[%clk 0:04:49]} 9. Qxf3 {[%clk 0:04:17.2]} 9... O-O
{[%clk 0:04:48.9]} 10. Bg5 {[%clk 0:04:12.5]} 10... Kh8 {[%clk 0:04:48.8]} 11.
Bxf6 {[%clk 0:03:06.9]} 11... Bxf6 {[%clk 0:04:41.4]} 12. Ne2 {[%clk 0:03:06.2]}
12... Nd7 {[%clk 0:04:35.2]} 13. c3 {[%clk 0:03:05.1]} 13... Re8 {[%clk
0:04:23]} 14. Ng3 {[%clk 0:02:58.4]} 14... g6 {[%clk 0:04:17.7]} 15. Rfe1 {[%clk
0:02:54.4]} 15... Qb6 {[%clk 0:03:58.7]} 16. b3 {[%clk 0:02:34.7]} 16... Qc7
{[%clk 0:03:15.9]} 17. Rac1 {[%clk 0:02:26.1]} 17... Kg7 {[%clk 0:02:51.5]} 18.
Qg4 {[%clk 0:02:20.1]} 18... a5 {[%clk 0:02:15.9]} 19. Nh5+ {[%clk 0:02:16.9]}
19... Kh8 {[%clk 0:02:12.2]} 20. Nxf6 {[%clk 0:02:13]} 20... Nxf6 {[%clk
0:02:10.6]} 21. Qh4 {[%clk 0:02:12.9]} 21... a4 {[%clk 0:02:02.2]} 22. Qxf6+
{[%clk 0:02:04.6]} 1-0

[Event "Live Chess"]
[Site "Chess.com"]
[Date "2023.05.21"]
[Round "-"]
[White "mliszewski"]
[Black "Ocelot32"]
[Result "0-1"]
[WhiteElo "1839"]
[BlackElo "1387"]
[TimeControl "300"]
[EndTime "1:50:04 PDT"]
[Termination "Ocelot32 won by resignation"]

1. d4 {[%clk 0:04:59.7]} 1... Nf6 {[%clk 0:04:52.5]} 2. Bg5 {[%clk 0:04:58.6]}
2... d5 {[%clk 0:04:48.7]} 3. Bxf6 {[%clk 0:04:57.7]} 3... exf6 {[%clk
0:04:47.6]} 4. e3 {[%clk 0:04:57.5]} 4... Bd6 {[%clk 0:04:46]} 5. c4 {[%clk
0:04:56.1]} 5... c6 {[%clk 0:04:41.4]} 6. cxd5 {[%clk 0:04:55.2]} 6... cxd5
{[%clk 0:04:39.9]} 7. Nc3 {[%clk 0:04:54.8]} 7... Be6 {[%clk 0:04:38]} 8. g3
{[%clk 0:04:53.7]} 8... O-O {[%clk 0:04:36.5]} 9. Bg2 {[%clk 0:04:53.4]} 9...
Nc6 {[%clk 0:04:35.7]} 10. Nxd5 {[%clk 0:04:51.4]} 10... Qa5+ {[%clk 0:04:30.3]}
11. Nc3 {[%clk 0:04:49.5]} 11... Bb4 {[%clk 0:04:28.9]} 12. Rc1 {[%clk
0:04:46.6]} 12... Bxa2 {[%clk 0:04:24.7]} 13. Ne2 {[%clk 0:04:43.8]} 13... Bc4
{[%clk 0:04:22.8]} 14. O-O {[%clk 0:04:41.9]} 14... Bxc3 {[%clk 0:04:18.8]} 15.
Rxc3 {[%clk 0:04:40.4]} 15... Bd5 {[%clk 0:04:18.2]} 16. e4 {[%clk 0:04:36.1]}
16... Ba2 {[%clk 0:04:10.3]} 17. Ra3 {[%clk 0:04:33.2]} 17... Qb4 {[%clk
0:03:58.9]} 18. Rxa2 {[%clk 0:04:31.7]} 18... Rfe8 {[%clk 0:03:55.4]} 19. d5
{[%clk 0:04:29.6]} 19... Ne5 {[%clk 0:03:53.8]} 20. Nc3 {[%clk 0:04:26.2]} 20...
Rac8 {[%clk 0:03:47.5]} 21. Ra4 {[%clk 0:04:24.5]} 21... Qb6 {[%clk 0:03:45.1]}
22. Qd4 {[%clk 0:04:19.3]} 22... Qxb2 {[%clk 0:03:41.6]} 23. Rxa7 {[%clk
0:03:52.6]} 23... Rxc3 {[%clk 0:03:31.1]} 24. Rxb7 {[%clk 0:03:47.3]} 24... Qc2
{[%clk 0:03:29.1]} 25. Qa7 {[%clk 0:03:39.6]} 25... Rf8 {[%clk 0:03:16]} 26.
Rfb1 {[%clk 0:03:26]} 26... Ng4 {[%clk 0:03:07.5]} 27. R7b2 {[%clk 0:03:19.1]}
27... Qd3 {[%clk 0:03:02]} 28. h3 {[%clk 0:03:11.7]} 28... Ne5 {[%clk
0:02:58.7]} 29. Qe7 {[%clk 0:02:33]} 29... Rc2 {[%clk 0:02:49.8]} 30. Rb8 {[%clk
0:02:29.4]} 30... Ng6 {[%clk 0:02:40.6]} 31. Rxf8+ {[%clk 0:02:24.4]} 31... Nxf8
{[%clk 0:02:38.8]} 32. Rb8 {[%clk 0:02:11.8]} 32... h5 {[%clk 0:02:27]} 33.
Qxf8+ {[%clk 0:02:02.4]} 33... Kh7 {[%clk 0:02:26.3]} 34. Qxf7 {[%clk
0:01:58.6]} 34... Rc1+ {[%clk 0:02:11.8]} 35. Kh2 {[%clk 0:01:56.7]} 35... Qd1
{[%clk 0:02:09.9]} 36. Qxh5+ {[%clk 0:01:52.9]} 36... Qxh5 {[%clk 0:02:05.6]}
37. g4 {[%clk 0:01:51.6]} 37... Qe5+ {[%clk 0:02:03.6]} 38. f4 {[%clk
0:01:48.2]} 38... Qxb8 {[%clk 0:02:01.7]} 0-1

[Event "Live Chess"]
[Site "Chess.com"]
[Date "2023.05.21"]
[Round "-"]
[White "JoeRoot66"]
[Black "SupremeTactician"]
[Result "0-1"]
[WhiteElo "1917"]
[BlackElo "2288"]
[TimeControl "300"]
[EndTime "1:50:21 PDT"]
[Termination "SupremeTactician won by resignation"]

1. e4 {[%clk 0:04:59.2]} 1... e5 {[%clk 0:04:59.2]} 2. Nc3 {[%clk 0:04:55.8]}
2... Nc6 {[%clk 0:04:58]} 3. Bc4 {[%clk 0:04:55.2]} 3... Bc5 {[%clk 0:04:54]} 4.
Qg4 {[%clk 0:04:54.9]} 4... Qf6 {[%clk 0:04:53.3]} 5. Nd5 {[%clk 0:04:53.6]}
5... Qxf2+ {[%clk 0:04:52.5]} 6. Kd1 {[%clk 0:04:53.4]} 6... Kf8 {[%clk
0:04:51.7]} 7. Nh3 {[%clk 0:04:49.8]} 7... h5 {[%clk 0:04:50.9]} 8. Qg5 {[%clk
0:04:49.3]} 8... f6 {[%clk 0:04:48.2]} 9. Qg6 {[%clk 0:04:39.3]} 9... Rh6 {[%clk
0:04:45]} 10. Nxf2 {[%clk 0:04:09.2]} 10... Rxg6 {[%clk 0:04:42.4]} 11. Nd3
{[%clk 0:04:08]} 11... Bb6 {[%clk 0:04:31.8]} 12. a4 {[%clk 0:04:06.3]} 12... d6
{[%clk 0:04:09.5]} 13. b4 {[%clk 0:03:59.8]} 13... Bg4+ {[%clk 0:04:03.5]} 14.
Ke1 {[%clk 0:03:56.5]} 14... a5 {[%clk 0:04:01.7]} 15. Nxb6 {[%clk 0:03:43.3]}
15... cxb6 {[%clk 0:04:01.6]} 16. b5 {[%clk 0:03:40.6]} 16... Nd4 {[%clk
0:04:00.4]} 17. Ra2 {[%clk 0:03:38.5]} 17... Ne7 {[%clk 0:03:48.8]} 18. c3
{[%clk 0:03:35]} 18... Rc8 {[%clk 0:03:46.9]} 19. cxd4 {[%clk 0:03:17.4]} 19...
Rxc4 {[%clk 0:03:45.9]} 20. dxe5 {[%clk 0:03:16.9]} 20... Rxe4+ {[%clk
0:03:45.2]} 0-1

[Event "Live Chess"]
[Site "Chess.com"]
[Date "2023.05.21"]
[Round "-"]
[White "rasrae1364"]
[Black "Woodpusher500"]
[Result "1-0"]
[WhiteElo "1739"]
[BlackElo "1042"]
[TimeControl "300"]
[EndTime "1:50:44 PDT"]
[Termination "rasrae1364 won by checkmate"]

1. e4 {[%clk 0:04:54.7]} 1... e5 {[%clk 0:04:54.6]} 2. c3 {[%clk 0:04:49.4]}
2... Nf6 {[%clk 0:04:47.2]} 3. Nf3 {[%clk 0:04:36.6]} 3... Nc6 {[%clk
0:04:42.3]} 4. d4 {[%clk 0:04:31.4]} 4... exd4 {[%clk 0:04:39.9]} 5. e5 {[%clk
0:04:26.8]} 5... Ng4 {[%clk 0:04:27.6]} 6. cxd4 {[%clk 0:04:20.4]} 6... d6
{[%clk 0:04:25.1]} 7. h3 {[%clk 0:04:14.6]} 7... Nh6 {[%clk 0:04:15.4]} 8. Bxh6
{[%clk 0:04:09.2]} 8... gxh6 {[%clk 0:04:13]} 9. Bb5 {[%clk 0:04:03.4]} 9... Bd7
{[%clk 0:04:04.6]} 10. O-O {[%clk 0:03:57.4]} 10... dxe5 {[%clk 0:04:02.1]} 11.
Nc3 {[%clk 0:03:50.9]} 11... exd4 {[%clk 0:03:51.5]} 12. Re1+ {[%clk 0:03:46.7]}
12... Be7 {[%clk 0:03:47.9]} 13. Nd5 {[%clk 0:03:42.4]} 13... a6 {[%clk
0:03:34.8]} 14. Bxc6 {[%clk 0:03:37.1]} 14... bxc6 {[%clk 0:03:28.8]} 15. Qxd4
{[%clk 0:03:33.1]} 15... cxd5 {[%clk 0:03:24.2]} 16. Qxh8# {[%clk 0:03:31.3]}
1-0

[Event "Live Chess"]
[Site "Chess.com"]
[Date "2023.05.21"]
[Round "-"]
[White "Larchikov"]
[Black "quantum_void"]
[Result "1-0"]
[WhiteElo "2068"]
[BlackElo "1504"]
[TimeControl "300"]
[EndTime "1:51:51 PDT"]
[Termination "Larchikov won by resignation"]

1. Nf3 {[%clk 0:04:57.4]} 1... e6 {[%clk 0:04:58.6]} 2. d4 {[%clk 0:04:56.7]}
2... d5 {[%clk 0:04:58.1]} 3. c4 {[%clk 0:04:56.1]} 3... Nf6 {[%clk 0:04:56.9]}
4. Nc3 {[%clk 0:04:55.6]} 4... Bb4 {[%clk 0:04:55.2]} 5. Bg5 {[%clk 0:04:55]}
5... O-O {[%clk 0:04:53.6]} 6. e3 {[%clk 0:04:54]} 6... h6 {[%clk 0:04:52.2]} 7.
Bxf6 {[%clk 0:04:51]} 7... Qxf6 {[%clk 0:04:50.4]} 8. cxd5 {[%clk 0:04:50.1]}
8... Bxc3+ {[%clk 0:04:48.2]} 9. bxc3 {[%clk 0:04:48.7]} 9... exd5 {[%clk
0:04:46.4]} 10. Bd3 {[%clk 0:04:48.1]} 10... Re8 {[%clk 0:04:44.6]} 11. h3
{[%clk 0:04:45.8]} 11... Nd7 {[%clk 0:04:34]} 12. O-O {[%clk 0:04:44.1]} 12...
c5 {[%clk 0:04:32.9]} 13. Bb5 {[%clk 0:04:41.5]} 13... c4 {[%clk 0:04:28.8]} 14.
Ne5 {[%clk 0:04:36.1]} 14... Qd6 {[%clk 0:04:27.7]} 15. Bxd7 {[%clk 0:04:32.5]}
15... Bxd7 {[%clk 0:04:25.7]} 16. Rb1 {[%clk 0:04:21.6]} 16... b6 {[%clk
0:04:22.2]} 17. Qh5 {[%clk 0:04:05.6]} 17... Re6 {[%clk 0:04:01.1]} 18. Qxf7+
{[%clk 0:03:59.8]} 18... Kh7 {[%clk 0:04:00.1]} 19. Qxd7 {[%clk 0:03:58.3]} 1-0

[Event "Live Chess"]
[Site "Chess.com"]
[Date "2023.05.21"]
[Round "-"]
[White "stevochess11"]
[Black "JohanKjeldahl"]
[Result "0-1"]
[WhiteElo "1734"]
[BlackElo "1908"]
[TimeControl "300"]
[EndTime "1:52:29 PDT"]
[Termination "JohanKjeldahl won by checkmate"]

1. d4 {[%clk 0:04:57.6]} 1... Nf6 {[%clk 0:04:57.6]} 2. Nf3 {[%clk 0:04:56.6]}
2... e6 {[%clk 0:04:55.7]} 3. e3 {[%clk 0:04:55.6]} 3... b6 {[%clk 0:04:54]} 4.
Bd3 {[%clk 0:04:54.3]} 4... Bb7 {[%clk 0:04:53]} 5. O-O {[%clk 0:04:52.5]} 5...
d5 {[%clk 0:04:51.9]} 6. b3 {[%clk 0:04:46.8]} 6... Bd6 {[%clk 0:04:46.6]} 7.
Bb2 {[%clk 0:04:45.1]} 7... O-O {[%clk 0:04:45.4]} 8. Nbd2 {[%clk 0:04:44.2]}
8... Nbd7 {[%clk 0:04:43.5]} 9. Ne5 {[%clk 0:04:35.6]} 9... c5 {[%clk
0:04:35.2]} 10. f4 {[%clk 0:04:30.9]} 10... Ne4 {[%clk 0:04:30.7]} 11. Ndf3
{[%clk 0:04:20]} 11... f6 {[%clk 0:04:27.6]} 12. Nxd7 {[%clk 0:04:05.5]} 12...
Qxd7 {[%clk 0:04:25]} 13. c4 {[%clk 0:04:02.4]} 13... Rae8 {[%clk 0:04:16.1]}
14. Qc2 {[%clk 0:03:57.5]} 14... f5 {[%clk 0:04:12.1]} 15. dxc5 {[%clk
0:03:52.2]} 15... Bxc5 {[%clk 0:04:09.8]} 16. Ne5 {[%clk 0:03:49.9]} 16... Bxe3+
{[%clk 0:04:07]} 17. Kh1 {[%clk 0:03:47]} 17... Qd8 {[%clk 0:04:04.8]} 18. Bxe4
{[%clk 0:03:42.7]} 18... dxe4 {[%clk 0:03:58.3]} 19. Qc3 {[%clk 0:03:40]} 19...
Bc5 {[%clk 0:03:49.6]} 20. Nc6 {[%clk 0:03:33.2]} 20... Qc7 {[%clk 0:03:40]} 21.
Ne5 {[%clk 0:03:24.8]} 21... Rf6 {[%clk 0:03:35.6]} 22. Rad1 {[%clk 0:03:23.2]}
22... Rd8 {[%clk 0:03:22.7]} 23. Rxd8+ {[%clk 0:03:13.9]} 23... Qxd8 {[%clk
0:03:21.2]} 24. g4 {[%clk 0:03:07.3]} 24... e3+ {[%clk 0:03:16.6]} 25. Kg1
{[%clk 0:03:05.4]} 25... e2+ {[%clk 0:03:15.2]} 26. Rf2 {[%clk 0:03:03.4]} 26...
Qd1+ {[%clk 0:03:07.8]} 27. Qe1 {[%clk 0:02:57.2]} 27... Qxe1# {[%clk
0:03:05.5]} 0-1